bitfinex/quotes_ETHUSD_20220202
["timestamp","ask_amount","ask_price","bid_price","bid_amount"]
[1643839489445,0.1885,2653.3,2651.5,0.65549999]
[1643839489641,1.02943376,2653.6,2652.8,0.84923675]
[1643839489642,0.01,2653.5,2652.8,0.84923675]
[1643839489841,0.01,2653.5,2652.9,0.448]
[1643839490239,0.8328741,2653.9,2653.0,0.448]
[1643839490439,0.8328741,2653.9,2653.1,0.448]
[1643839490641,0.26574577,2653.7,2653.2,0.448]
[1643839490842,0.33659997,2654.2,2653.3,0.448]
[1643839490843,0.00572732,2653.6,2653.3,0.448]
[1643839491142,0.00572732,2653.6,2653.4,0.448]
[1643839491341,2.732e-05,2653.6,2653.5,6.1864]
[1643839491543,2.732e-05,2653.6,2653.5,5.998]
[1643839491740,0.01,2654.9,2653.5,8.4864]
[1643839491944,0.01,2654.9,2653.6,2.78951763]
[1643839492139,0.01,2654.9,2653.7,0.448]
[1643839492393,0.01,2654.9,2653.8,0.1882]
[1643839492582,0.01,2654.9,2653.9,0.448]
[1643839492583,0.87521483,2654.3,2653.9,0.448]
[1643839492782,0.01,2654.4,2653.9,0.448]
[1643839492980,0.24763029,2654.5,2653.9,0.448]
[1643839494387,0.00573214,2654.3,2653.9,0.448]
[1643839495385,0.01262227,2654.6,2653.9,0.448]
[1643839495585,0.00573221,2654.2,2654.0,0.00141957]
[1643839496037,0.00573221,2654.2,2654.1,0.448]
[1643839496236,0.00573221,2654.2,2654.1,2.548]
[1643839496638,0.32639997,2655.2,2654.2,2.2]
[1643839496846,0.13819997,2655.4,2654.1,0.748]
[1643839496847,0.21459994,2655.4,2654.3,2.69700749]
[1643839497040,0.21459994,2655.4,2654.4,0.448]
[1643839497041,1.59597307,2655.3,2654.4,0.448]
[1643839497245,1.59597307,2655.3,2654.5,0.448]
[1643839497438,1.59597307,2655.3,2654.6,0.448]
[1643839497640,0.82151302,2654.9,2654.7,0.448]
[1643839497841,0.82151302,2654.9,2654.8,0.448]
[1643839498040,0.0037289,2655.1,2654.8,0.448]
[1643839498843,0.21887493,2654.9,2654.8,0.448]
[1643839499049,0.1882,2655.4,2654.8,0.448]
[1643839499246,0.00573694,2655.1,2654.8,0.448]
[1643839499893,0.00573694,2655.1,2655.0,5.76116643]
[1643839500090,0.00573694,2655.1,2655.0,6.72607214]
[1643839500394,2.20573694,2655.1,2655.0,0.448]
[1643839500591,2.20573694,2655.1,2654.6,0.1882]
[1643839500592,3.05,2655.0,2654.6,0.1882]
[1643839500794,3.05,2655.0,2654.6,0.448]
[1643839500992,1.78431058,2654.9,2654.6,0.448]
[1643839501191,3.17608061,2654.7,2654.6,0.448]
[1643839501398,3.17608061,2654.7,2653.9,0.00141957]
[1643839501399,0.67608061,2654.7,2653.9,0.44941957]
[1643839501591,0.41100202,2654.9,2653.9,0.44941957]
[1643839501791,0.22280202,2654.9,2653.9,0.44941957]
[1643839502695,0.16706493,2654.9,2653.9,0.44941957]
[1643839502893,0.1982,2655.3,2653.9,0.44941957]
[1643839503093,0.1982,2655.3,2653.9,0.6362]
[1643839503094,0.00573735,2654.5,2653.9,0.6362]
[1643839503535,0.00573735,2654.5,2653.9,0.1882]
[1643839503738,0.00573735,2654.5,2653.8,0.00141957]
[1643839503934,1.5964001,2654.4,2653.8,0.00141957]
[1643839504137,5.00515919,2654.0,2653.4,0.00141935]
[1643839504333,5.0,2653.6,2653.4,0.00141935]
[1643839504534,5.0,2653.6,2652.8,0.02296324]
[1643839504535,5.7384,2653.5,2652.8,0.02296324]
[1643839504735,2.6311879,2653.4,2652.8,0.02296324]
[1643839504937,0.1984,2653.3,2652.1,0.25]
[1643839505433,1.17095739,2653.1,2652.6,0.02295894]
[1643839505632,0.01,2653.0,2652.6,0.02295894]
[1643839506035,0.01,2653.0,2652.6,0.00775894]
[1643839506036,5.0,2652.8,2652.6,0.00775894]
[1643839506233,5.0,2652.8,2651.1,0.448]
[1643839506234,0.1884,2652.7,2651.1,0.1884]
[1643839506432,5.0,2652.3,2650.9,0.1885]
[1643839506633,0.01,2652.2,2650.9,0.1885]
[1643839506833,0.25463119,2651.1,2650.8,5.358018]
[1643839507681,0.25463119,2651.1,2650.8,5.36002323]
[1643839508683,0.01,2651.2,2650.8,5.358018]
[1643839508883,0.85836074,2651.3,2650.8,5.36002323]
[1643839509484,0.85836074,2651.3,2650.8,4.86002323]
[1643839509887,0.85836074,2651.3,2650.8,4.858018]
[1643839510092,0.85836074,2651.3,2650.9,0.00574754]
[1643839510489,0.2462928,2651.2,2650.9,0.00574754]
[1643839510688,0.2562928,2651.2,2650.9,0.00574754]
[1643839511151,0.2562928,2651.2,2650.8,4.858018]
[1643839511364,0.2562928,2651.2,2650.5,9.361e-05]
[1643839511365,1.70446173,2650.6,2650.5,9.361e-05]
[1643839511553,11.56266962,2650.6,2650.5,9.361e-05]
[1643839511751,49.23773472,2650.6,2650.5,9.361e-05]
[1643839511950,12.42434058,2650.6,2650.5,9.361e-05]
[1643839512149,7.42434058,2650.6,2650.5,9.361e-05]
[1643839512345,12.42434058,2650.6,2650.5,9.361e-05]
[1643839512547,12.6490742,2650.6,2650.5,9.361e-05]
[1643839513452,0.94407,2650.2,2648.4,0.448]
[1643839513649,5.0,2650.1,2648.5,0.1885]
[1643839513850,0.01,2650.0,2648.5,0.1885]
[1643839514451,0.26085187,2649.4,2648.7,0.85843882]
[1643839514652,0.01,2649.9,2648.7,0.85843882]
[1643839514888,0.1887,2650.3,2648.7,0.85843882]
[1643839514889,0.01,2650.3,2648.8,0.6367]
[1643839515085,0.02644154,2650.6,2648.8,0.6367]
[1643839515284,0.01644154,2650.6,2648.8,0.6367]
[1643839515686,0.23962537,2649.8,2648.8,0.6367]
[1643839516084,0.23962537,2649.8,2649.6,0.00572359]
[1643839516286,0.01,2650.5,2649.6,0.00572359]
[1643839516483,0.01839092,2650.6,2649.6,0.00572359]
[1643839516484,0.02839092,2650.6,2649.6,0.00572359]
[1643839517085,0.02266963,2650.6,2649.3,0.1887]
[1643839517285,0.1885,2650.5,2650.0,0.0057233]
[1643839517586,0.22081594,2650.4,2650.0,0.0057233]
[1643839517788,0.73256938,2650.2,2650.0,0.0057233]
[1643839518187,0.73256938,2650.2,2649.2,0.25]
[1643839518530,0.73256938,2650.2,2650.0,0.0057233]
[1643839519631,0.2646986,2649.7,2649.6,0.02289663]
[1643839520035,5.3146986,2649.7,2649.6,0.02289663]
[1643839520635,5.3146986,2649.7,2648.9,0.18991986]
[1643839520831,0.21860881,2649.2,2649.1,0.02289796]
[1643839521033,0.21860881,2649.2,2649.1,1.06610546]
[1643839521233,0.01,2650.0,2649.1,1.06610546]
[1643839521433,1.01697348,2650.5,2649.1,1.06610546]
[1643839521434,0.21157238,2650.4,2649.1,1.06610546]
[1643839521632,0.02287238,2650.4,2649.2,0.1887]
[1643839522035,0.02287238,2650.4,2649.6,0.00572356]
[1643839522284,0.01287238,2650.4,2649.6,0.00572356]
[1643839522483,0.01572136,2650.6,2649.6,0.00572356]
[1643839522685,0.01572136,2650.6,2649.7,0.448]
[1643839522885,0.01572136,2650.6,2649.8,2.39068825]
[1643839522886,0.00572136,2650.6,2649.8,2.39068825]
[1643839523081,0.01,2651.1,2649.9,0.6365]
[1643839523284,0.01,2651.1,2649.6,2.58286731]
[1643839523285,0.00572193,2650.6,2650.0,0.45372326]
[1643839523481,0.00572193,2650.6,2650.5,0.89302424]
[1643839523682,0.00572193,2650.6,2650.5,0.448]
[1643839523883,5.55572193,2650.6,2650.2,0.00141986]
[1643839524087,5.56220704,2650.3,2650.2,0.00141986]
[1643839524482,0.26537214,2649.9,2649.7,0.02289717]
[1643839524682,0.6561471,2650.2,2649.7,0.02289717]
[1643839525084,0.32,2650.4,2649.7,0.02289717]
[1643839525386,0.1885,2650.5,2649.4,0.00141986]
[1643839525581,0.26990193,2650.5,2649.6,0.20188877]
[1643839525785,0.26990193,2650.5,2649.9,0.00195641]
[1643839526235,6.61198564,2651.1,2649.9,0.00195641]
[1643839526236,0.1885,2651.0,2649.9,0.00195641]
[1643839526442,0.1885,2650.8,2649.9,0.00195641]
[1643839526637,0.1885,2651.0,2649.7,0.88525344]
[1643839526842,0.1885,2651.0,2650.3,0.00195611]
[1643839527040,0.1885,2651.1,2650.3,0.00195611]
[1643839527238,0.24655353,2650.9,2650.3,0.00195611]
[1643839527638,0.01259224,2651.3,2650.3,0.00195611]
[1643839527838,0.01259224,2651.3,2650.2,0.94326433]
[1643839527839,0.01259224,2651.3,2650.1,0.00141986]
[1643839528139,0.00572949,2650.7,2650.4,0.00573028]
[1643839529140,0.1885,2651.2,2650.1,0.00141986]
[1643839529339,0.1885,2651.2,2650.4,0.00573021]
[1643839529340,0.00572953,2650.7,2650.4,0.00573021]
[1643839529980,0.26091023,2650.7,2650.4,0.00573021]
[1643839530180,0.2551807,2650.7,2649.9,0.87955537]
[1643839530381,5.0,2650.7,2649.9,0.87955537]
[1643839530582,0.01,2650.6,2650.4,0.00573021]
[1643839531387,0.01,2650.6,2649.9,0.87955537]
[1643839531782,0.01,2650.6,2650.4,0.00195608]
[1643839532586,0.01,2650.6,2649.9,0.00141986]
[1643839532787,5.0,2650.2,2649.8,0.25]
[1643839532985,5.0,2650.2,2649.5,0.00141986]
[1643839532986,0.01,2650.1,2649.5,0.00141986]
[1643839533184,0.01,2650.4,2649.5,0.00141986]
[1643839533384,0.25038066,2650.1,2649.3,0.69243962]
[1643839533639,0.68915799,2650.3,2649.3,0.69243962]
[1643839533640,0.01,2650.4,2649.3,0.69243962]
[1643839533840,0.01,2650.5,2649.3,0.69243962]
[1643839534036,0.01,2650.5,2649.4,0.00141986]
[1643839534736,0.19904429,2650.0,2649.4,0.00141986]
[1643839535137,0.01,2650.2,2649.4,0.00141986]
[1643839535336,0.9428619,2650.3,2649.6,0.00194523]
[1643839535538,0.01,2650.5,2649.6,0.00194523]
[1643839535740,0.01,2650.8,2649.6,0.00194523]
[1643839535938,0.1985,2651.4,2649.6,0.44994523]
[1643839536145,0.25083684,2650.7,2649.7,0.00141986]
[1643839536339,0.25083684,2650.7,2649.8,0.1885]
[1643839536538,1.0583507,2650.7,2650.3,0.00166334]
[1643839536738,0.01,2650.6,2650.3,0.00166334]
[1643839536938,0.25083684,2650.7,2650.3,0.00166334]
[1643839537386,0.1985,2651.3,2649.8,0.00141986]
[1643839537587,0.1985,2651.3,2649.9,0.448]
[1643839537785,0.1985,2651.3,2650.3,0.00165904]
[1643839537987,0.01,2651.3,2650.3,0.00165904]
[1643839538484,0.26846792,2650.8,2650.3,0.00165904]
[1643839538689,0.26846792,2650.8,2650.1,0.00141986]
[1643839538886,0.83497997,2651.2,2650.3,0.00165904]
[1643839539085,0.82497997,2651.2,2650.3,0.00165904]
[1643839539685,0.83497997,2651.2,2650.3,0.00165904]
[1643839539885,0.19677714,2650.8,2650.2,0.1885]
[1643839540085,0.19677714,2650.8,2650.3,0.00165904]
[1643839540888,0.01,2651.1,2650.3,0.00165904]
[1643839541131,0.83497997,2651.2,2650.3,0.5459655]
[1643839541336,0.00562903,2650.7,2650.3,0.55159541]
[1643839541934,0.00562903,2650.7,2650.4,0.66989247]
[1643839542137,0.00562903,2650.7,2650.4,0.91989247]
[1643839542334,0.21489993,2651.6,2650.4,0.91989247]
[1643839542335,0.02639993,2651.6,2650.4,0.91989247]
[1643839542533,0.00562903,2650.7,2650.5,0.448]
[1643839543135,0.00562903,2650.7,2650.6,4.84025708]
[1643839543335,0.00562903,2650.7,2650.6,6.23825708]
[1643839543533,0.1885,2652.0,2650.6,6.53825708]
[1643839543734,0.00562896,2650.8,2650.6,6.53825708]
[1643839543937,0.00562896,2650.8,2650.7,4.4385]
[1643839544135,0.00562896,2650.8,2650.7,7.66622972]
[1643839544336,0.00562896,2650.8,2650.7,6.1865]
[1643839544536,0.00562896,2650.8,2650.7,5.1846]
[1643839544787,0.67660765,2652.1,2651.2,0.69781878]
[1643839544986,0.01279567,2652.3,2651.2,0.69781878]
[1643839544987,0.01279567,2652.3,2651.3,2.448]
[1643839545194,0.91961033,2653.3,2651.9,0.23294516]
[1643839545195,0.19182532,2652.8,2651.9,0.23294516]
[1643839545395,0.01,2653.1,2652.0,0.448]
[1643839545590,1.59695002,2653.0,2652.3,1.5]
[1643839545791,0.69371609,2653.6,2652.3,1.5]
[1643839545792,0.01,2652.9,2652.4,0.448]
[1643839545988,1.3195099,2653.9,2652.4,0.448]
[1643839545989,0.1984,2653.8,2652.4,0.448]
[1643839546188,0.1884,2653.8,2652.5,0.94604772]
[1643839546392,1.59663688,2653.7,2652.6,0.698]
[1643839546597,0.01,2653.6,2652.6,1.8864]
[1643839546789,0.01225237,2653.9,2652.8,1.0]
[1643839546790,0.01,2653.7,2652.8,1.0]
[1643839546995,0.01211296,2654.6,2653.1,1.0]
[1643839547194,1.59641526,2654.5,2653.2,0.6364]
[1643839547390,0.01,2654.4,2653.3,2.42597459]
[1643839547691,0.01,2654.4,2653.9,0.24695524]
[1643839547889,0.01211296,2654.6,2654.0,0.448]
[1643839548094,0.88211609,2655.2,2654.0,2.74121125]
[1643839548292,1.59584593,2655.1,2654.1,1.3]
[1643839548534,0.76855526,2655.4,2654.8,0.84667202]
[1643839548535,1.60584593,2655.0,2654.8,0.84667202]
[1643839548736,0.568258,2655.4,2654.8,0.84667202]
[1643839548737,0.578258,2655.4,2654.9,0.448]
[1643839548933,1.59561265,2655.3,2654.9,0.448]
[1643839549138,0.01,2655.2,2654.9,0.448]
[1643839549335,1.59561265,2655.1,2654.9,0.448]
[1643839549535,1.60561265,2655.1,2654.9,0.448]
[1643839549734,1.59562907,2655.0,2654.9,0.448]
[1643839549935,0.00379516,2655.2,2654.9,0.448]
[1643839549936,0.01,2655.1,2654.9,0.448]
[1643839550135,0.00379516,2655.2,2654.9,0.448]
[1643839550634,0.01,2655.2,2654.9,0.448]
[1643839550836,0.01379516,2655.2,2654.9,0.448]
[1643839551039,0.00379516,2655.2,2654.9,0.448]
[1643839551235,0.00379516,2655.2,2654.9,0.45956652]
[1643839551439,0.00379516,2655.2,2654.9,1.45956652]
[1643839551633,0.00379516,2655.2,2655.1,3.50222429]
[1643839551840,0.568258,2655.4,2655.1,4.20154274]
[1643839552035,0.568258,2655.4,2655.1,2.4996685]
[1643839552288,0.0057403,2655.2,2655.1,2.4996685]
[1643839552488,0.02295774,2655.6,2655.2,5.10995021]
[1643839552687,0.02295774,2655.6,2655.4,0.01260051]
[1643839552885,0.02295774,2655.6,2655.5,5.7930104]
[1643839553088,0.90727695,2656.8,2655.5,6.2410104]
[1643839553286,0.01,2656.8,2655.5,7.2410104]
[1643839553485,0.01,2656.8,2655.6,2.00894541]
[1643839553686,1.59509966,2656.7,2655.7,0.448]
[1643839553886,0.01,2656.6,2655.7,0.448]
[1643839554087,1.60509966,2656.7,2655.7,0.448]
[1643839554288,0.01,2656.6,2656.2,0.67058547]
[1643839554493,0.01,2656.6,2656.3,0.448]
[1643839554790,0.01249432,2657.5,2656.3,0.448]
[1643839554791,0.01516118,2656.7,2656.5,1.78511]
[1643839554993,0.01516118,2656.7,2656.6,4.448]
[1643839555191,0.01516118,2656.7,2656.6,4.65429998]
[1643839555389,6.118e-05,2656.7,2656.6,5.448]
[1643839555693,1.59460356,2657.4,2656.6,9.547]
[1643839555890,0.01223386,2658.2,2656.8,6.55]
[1643839556147,0.188,2658.3,2656.9,0.13819997]
[1643839556345,0.188,2658.5,2657.0,0.11180003]
[1643839556547,1.0655,2658.6,2657.1,0.448]
[1643839556746,0.26437748,2658.4,2657.5,0.21458652]
[1643839556952,1.78208116,2658.5,2657.2,1.78511]
[1643839556953,1.59414334,2658.3,2657.2,2.78511]
[1643839557152,1.0655,2658.6,2657.3,0.448]
[1643839557350,1.0655,2658.6,2657.5,1.0]
[1643839557545,0.188,2658.9,2657.7,5.55]
[1643839557749,0.188,2659.4,2657.8,0.63583]
[1643839557948,1.81022871,2659.3,2658.4,0.257889]
[1643839558146,1.78176432,2659.2,2658.5,0.448]
[1643839558346,1.14729985,2659.3,2658.6,0.448]
[1643839558551,0.188,2659.4,2658.7,0.448]
[1643839558752,0.188,2659.8,2658.7,2.23311]
[1643839558951,0.188,2660.2,2658.7,8.02938865]
[1643839559149,0.0123788,2660.4,2659.2,2.79462669]
[1643839559350,2.55158441,2660.5,2659.3,2.07373]
[1643839559351,6.531e-05,2659.4,2659.3,2.07373]
[1643839559552,6.531e-05,2659.4,2659.3,9.7496295]
[1643839559802,0.84239629,2661.2,2659.3,9.7496295]
[1643839559803,0.0126105,2661.2,2659.4,5.55]
[1643839559996,0.1879,2661.5,2660.2,1.0]
[1643839560200,0.1879,2661.7,2660.2,1.9069]
[1643839560394,0.01290771,2662.3,2661.0,1.78511]
[1643839560598,0.01290771,2662.3,2661.6,0.21520627]
[1643839560599,0.1877,2662.2,2661.6,0.21520627]
[1643839560797,0.67511538,2662.4,2661.2,3.06013769]
[1643839560997,0.67511538,2662.4,2661.2,0.0109742]
[1643839560998,0.1877,2662.3,2661.2,0.0109742]
[1643839561199,0.01,2661.7,2661.3,0.448]
[1643839561395,0.02205281,2661.7,2661.1,0.68137488]
[1643839561596,0.20975281,2661.7,2661.1,1.12937488]
[1643839561796,1.06853484,2661.7,2661.1,1.12937488]
[1643839561999,0.01,2661.6,2661.1,1.12937488]
[1643839562598,0.01,2661.6,2661.1,2.91448488]
[1643839562902,0.1877,2661.7,2660.6,0.25]
[1643839562903,0.4651995,2661.7,2660.6,0.25]
[1643839563544,0.99999999,2661.5,2660.6,0.25]
[1643839563744,0.01275512,2660.7,2660.6,0.25]
[1643839564046,0.01275512,2660.7,2658.9,1.78511]
[1643839564047,0.16305088,2660.7,2659.6,0.25]
[1643839564240,5.0,2660.5,2658.3,0.10376052]
[1643839564439,0.01227399,2659.9,2659.2,0.25]
[1643839564641,0.01227399,2659.9,2658.6,0.25]
[1643839564842,0.188,2659.8,2658.6,0.25]
[1643839565043,0.23193562,2659.9,2658.6,0.25]
[1643839565844,0.85672437,2658.9,2658.4,0.11180003]
[1643839566042,2.93442833,2659.7,2658.4,0.11180003]
[1643839566244,0.198,2659.6,2658.4,0.11180003]
[1643839566444,0.01227399,2659.9,2658.4,0.11180003]
[1643839566445,0.188,2659.8,2658.4,0.11180003]
[1643839566648,0.00739783,2659.7,2658.4,0.11180003]
[1643839566843,0.03639993,2660.5,2658.4,0.11180003]
[1643839566844,0.188,2660.3,2658.7,2.79768551]
[1643839567041,0.02639993,2660.5,2658.8,0.63583]
[1643839567293,0.02639993,2660.5,2658.8,0.448]
[1643839567491,0.02639993,2660.5,2658.8,1.448]
[1643839567702,0.02639993,2660.5,2658.8,0.448]
[1643839567891,0.02639993,2660.5,2658.8,1.448]
[1643839568090,0.02639993,2660.5,2658.8,0.448]
[1643839568299,0.02639993,2660.5,2659.5,0.72402859]
[1643839568490,0.1879,2660.6,2659.6,0.448]
[1643839568491,0.16429993,2660.6,2659.6,0.448]
[1643839568691,0.16429993,2660.6,2659.7,0.448]
[1643839568890,0.16429993,2660.6,2659.8,0.448]
[1643839569092,0.00575803,2660.1,2659.8,0.448]
[1643839569896,0.16429993,2660.6,2659.8,1.30659345]
[1643839570205,0.00575807,2660.1,2660.0,0.00500063]
[1643839570393,0.00575807,2660.1,2660.0,5.76630327]
[1643839570593,0.00435804,2660.1,2660.0,0.66430327]
[1643839571039,0.1879,2661.4,2660.0,0.66430327]
[1643839571947,0.1879,2661.4,2660.5,0.2064735]
[1643839572142,0.21265549,2661.5,2660.5,0.42576537]
[1643839572143,0.01245401,2661.5,2660.5,0.42576537]
[1643839572343,0.01245401,2661.5,2660.6,0.448]
[1643839572548,0.01245401,2661.5,2660.6,2.51095993]
[1643839572748,0.01,2661.7,2660.6,2.51095993]
[1643839572943,0.01,2661.7,2660.7,1.0]
[1643839573144,0.01,2661.7,2660.8,0.448]
[1643839573343,0.01,2661.7,2661.2,0.70175138]
[1643839573544,0.01,2661.7,2661.3,0.448]
[1643839573746,0.00377151,2661.4,2661.3,0.448]
[1643839573947,0.01280056,2662.2,2661.4,5.55]
[1643839574147,5.0,2664.0,2663.6,0.58539035]
[1643839574148,0.19984841,2663.9,2663.6,0.58539035]
[1643839574345,0.1878,2663.9,2663.6,0.58539035]
[1643839574544,0.1877,2664.3,2663.6,0.58539035]
[1643839574795,7.3362,2664.4,2663.7,0.448]
[1643839574993,0.26088243,2664.1,2663.7,0.448]
[1643839575192,0.20043343,2664.9,2663.7,0.448]
[1643839575795,0.99999999,2664.5,2663.7,0.448]
[1643839576005,5.55,2664.1,2663.8,0.448]
[1643839576195,0.94257486,2664.0,2663.8,0.448]
[1643839576395,5.0,2663.9,2663.8,0.448]
[1643839576596,0.19964169,2663.9,2663.6,0.07269316]
[1643839576801,0.19964169,2663.9,2663.4,0.25]
[1643839576802,5.55,2663.6,2663.4,0.25]
[1643839576996,5.55,2663.6,2663.0,0.195148]
[1643839577202,0.1877,2663.5,2663.0,0.195148]
[1643839577395,0.45382922,2663.5,2663.0,0.195148]
[1643839577596,0.26612922,2663.5,2663.0,0.195148]
[1643839577794,0.67794987,2663.3,2663.0,0.195148]
[1643839578537,0.68372684,2663.3,2663.0,0.195148]
[1643839579643,0.67794987,2663.3,2663.0,4.8e-05]
[1643839579839,10.41297388,2663.1,2663.0,4.8e-05]
[1643839580038,5.41297388,2663.1,2663.0,4.8e-05]
[1643839580742,5.4,2663.1,2663.0,4.8e-05]
[1643839583491,5.5877,2663.1,2663.0,4.8e-05]
[1643839584591,5.4,2663.1,2663.0,4.8e-05]
[1643839584791,10.4,2663.1,2663.0,4.8e-05]
[1643839584991,5.4,2663.1,2663.0,4.8e-05]
[1643839586052,5.55725333,2663.0,2661.8,0.1877]
[1643839586244,5.0,2662.5,2661.8,0.4377]
[1643839586443,5.0,2662.5,2661.7,0.00577012]
[1643839586444,0.01,2662.4,2661.7,0.00577012]
[1643839586842,0.01,2662.4,2661.1,0.25]
[1643839587044,0.00576752,2662.3,2661.7,0.00576886]
[1643839587244,0.82435714,2662.2,2661.7,0.00576886]
[1643839587942,0.82435714,2662.2,2661.4,0.25784482]
[1643839588144,0.82435714,2662.2,2661.2,0.1877]
[1643839588347,0.00576768,2662.1,2661.7,0.00576858]
[1643839589143,0.03056996,2662.6,2661.2,0.1877]
[1643839589144,0.00750372,2662.6,2661.2,0.1877]
[1643839589343,0.00576771,2662.0,2661.7,0.00576851]
[1643839590094,0.00576771,2662.0,2661.8,0.01228373]
[1643839590290,0.00277276,2662.3,2661.9,4.9357]
[1643839590486,0.00277276,2662.7,2661.9,5.17365202]
[1643839590687,0.02306568,2662.6,2661.9,0.6357]
[1643839591489,0.0253121,2663.3,2661.9,0.6357]
[1643839591490,0.0153121,2663.3,2661.9,0.6357]
[1643839591888,0.00576745,2662.4,2661.9,0.6357]
[1643839592089,0.00576745,2662.4,2661.2,2.78656]
[1643839592090,0.00576745,2662.4,2661.2,7.33656]
[1643839592288,0.00576745,2662.4,2662.2,0.70424765]
[1643839592489,0.00576745,2662.4,2662.2,1.15224765]
[1643839592689,0.01253934,2663.3,2662.2,1.15224765]
[1643839592889,0.0153121,2663.3,2662.2,1.15224765]
[1643839593641,0.0153121,2663.3,2662.5,0.26502647]
[1643839594041,0.0153121,2663.3,2662.2,1.15224765]
[1643839594240,0.00576707,2662.9,2662.2,1.15224765]
[1643839595241,0.0153121,2663.3,2662.2,1.15224765]
[1643839595642,0.00576722,2662.7,2662.2,1.15224765]
[1643839595841,0.00576722,2662.7,2662.2,0.448]
[1643839596443,0.0153121,2663.3,2662.2,0.64711819]
[1643839596643,0.0057673,2662.6,2662.2,0.64711819]
[1643839597488,0.00277276,2662.9,2662.2,0.64711819]
[1643839597688,1.59404932,2663.2,2662.2,0.64711819]
[1643839597888,0.00576733,2662.5,2662.2,0.64711819]
[1643839598087,0.00576733,2662.5,2662.2,0.448]
[1643839598693,0.00277276,2663.2,2662.2,0.448]
[1643839599090,0.00576737,2662.5,2662.2,0.448]
[1643839599290,0.00576737,2662.5,2662.0,0.23900126]
[1643839599990,0.00277276,2662.8,2662.0,0.23900126]
[1643839600192,0.00374036,2662.4,2662.0,0.23900126]
[1643839600591,0.00374036,2662.4,2661.8,2.198]
[1643839600792,0.00374036,2662.4,2661.7,0.1877]
[1643839601048,0.00935199,2662.3,2661.2,0.1877]
[1643839601254,1.59142367,2662.2,2661.1,0.25]
[1643839601448,0.01,2662.1,2661.1,0.25]
[1643839601648,1.59142367,2662.0,2661.1,0.25]
[1643839601848,0.01,2661.9,2661.0,0.89201405]
[1643839602051,0.01,2661.9,2661.0,0.1877]
[1643839602249,0.00277276,2662.1,2661.0,0.1877]
[1643839602250,0.01277276,2662.1,2661.0,0.1877]
[1643839602649,0.01277276,2662.1,2661.3,0.00576356]
[1643839602650,0.00576234,2661.9,2661.3,0.00576356]
[1643839602853,0.02331755,2661.9,2661.3,0.00576356]
[1643839603051,1.59175946,2661.8,2661.3,0.00576356]
[1643839603252,0.01,2661.7,2661.3,0.00576356]
[1643839603451,1.59175946,2661.6,2661.3,0.00576356]
[1643839603650,0.01,2661.5,2660.9,0.448]
[1643839603857,0.89981561,2661.8,2661.4,0.00576353]
[1643839603858,0.00277276,2661.7,2661.4,0.00576353]
[1643839604153,0.00944188,2661.1,2660.6,0.25]
[1643839604352,1.59209981,2661.0,2659.9,0.25]
[1643839604551,0.71004422,2660.9,2660.0,0.1879]
[1643839604791,0.71004422,2660.9,2659.9,0.4379]
[1643839604990,1.59209981,2660.8,2659.9,0.25]
[1643839605189,0.01,2660.7,2659.9,0.25]
[1643839605592,0.70573287,2660.9,2659.9,0.25]
[1643839605790,1.59229164,2660.8,2659.9,0.25]
[1643839605992,0.01,2660.7,2659.9,0.25]
[1643839606393,1.5923837,2660.6,2659.9,0.25]
[1643839606590,0.01,2660.5,2660.2,1.5]
[1643839606990,0.23697741,2660.7,2660.2,1.5]
[1643839607391,0.70004422,2660.9,2660.2,1.5]
[1643839607590,1.78025687,2660.8,2660.2,1.5057644]
[1643839607790,1.60235687,2660.7,2660.2,1.5057644]
[1643839607990,1.60235687,2660.6,2660.2,1.5057644]
[1643839608291,0.01,2660.5,2660.2,1.5057644]
[1643839608550,0.1879,2660.8,2660.3,0.00576436]
[1643839608745,0.01944188,2661.1,2660.3,0.00576436]
[1643839608746,0.1879,2661.0,2660.3,0.00576436]
[1643839608951,0.00944188,2661.1,2660.3,0.00576436]
[1643839609147,0.00944188,2661.1,2660.4,0.448]
[1643839609647,1.59217321,2661.0,2660.7,0.24921668]
[1643839609947,0.01,2660.9,2660.7,0.24921668]
[1643839610147,0.00944188,2661.1,2660.6,0.00576409]
[1643839610545,1.5921675,2661.0,2660.6,0.00576409]
[1643839610745,1.5921675,2661.0,2660.2,0.448]
[1643839610746,0.01,2660.9,2660.2,0.448]
[1643839610947,0.00944188,2661.1,2660.2,0.448]
[1643839611144,0.00944188,2661.1,2660.7,0.26623898]
[1643839611347,0.00944188,2661.1,2660.7,0.00576402]
[1643839612047,0.00944188,2661.1,2660.2,0.448]
[1643839612290,0.00944188,2661.1,2660.8,0.00576398]
[1643839612695,1.59220514,2661.0,2660.8,0.00576398]
[1643839612893,6.69228103,2660.9,2660.8,0.00576398]
[1643839613092,6.69228103,2660.9,2660.0,0.1879]
[1643839613292,1.60228103,2660.8,2660.0,0.1879]
[1643839613492,5.1,2660.9,2660.0,0.1879]
[1643839613493,0.21485124,2660.4,2660.0,0.1879]
[1643839613693,0.01,2660.5,2660.0,0.1879]
[1643839613894,0.91078503,2660.6,2660.0,0.1879]
[1643839614297,0.91078503,2660.6,2659.4,0.13819996]
[1643839614594,0.82191606,2661.2,2659.4,0.13819996]
[1643839614595,0.68371609,2661.3,2659.9,1.01289346]
[1643839614796,0.01216218,2661.5,2661.0,0.01202605]
[1643839614797,0.1879,2661.5,2661.0,0.01202605]
[1643839614996,0.00374292,2661.7,2661.0,0.01202605]
[1643839615596,0.00277276,2662.1,2661.0,1.40510266]
[1643839615794,0.00277276,2662.3,2661.0,6.84666266]
[1643839616039,0.00575716,2661.7,2661.0,6.84666266]
[1643839616241,0.00575716,2661.7,2661.0,5.27422628]
[1643839616846,0.19047276,2662.3,2661.0,5.27422628]
[1643839617141,0.00575716,2661.7,2661.0,5.27422628]
[1643839617541,0.00575716,2661.7,2661.0,5.26220023]
[1643839617743,0.00575716,2661.7,2661.0,1.61220023]
[1643839617945,0.00277276,2662.1,2661.0,4.11220023]
[1643839618143,0.19047276,2662.1,2661.0,4.11220023]
[1643839618343,0.00575716,2661.7,2661.0,4.11220023]
[1643839619143,0.00277276,2662.2,2661.0,4.11220023]